fUSD/lending_fUSD_20251123
["ID","MTS","AMOUNT","RATE_DAILY","PERIOD"]
[394700239,1763905900005,-500.0,0.00039178,8]
[394700240,1763905900014,-500.0,0.00039178,8]
[394700241,1763905900023,-500.0,0.00039178,8]
[394700242,1763905900032,-500.0,0.00039178,8]
[394700243,1763905900042,-629.21,0.00039178,8]
[394700244,1763905900051,-500.0,0.00039178,8]
[394700245,1763905900060,-500.0,0.00039178,8]
[394700246,1763905900070,-500.0,0.00039178,8]
[394700247,1763905900079,-500.0,0.00039178,8]
[394700248,1763905900088,-808.03,0.00039178,8]
[394700249,1763905900097,-650.1,0.00039178,8]
[394700250,1763905900106,-500.70587775,0.00039178,8]
[394700251,1763905900115,-644.86,0.00039178,8]
[394700252,1763905900124,-500.0,0.00039178,8]
[394700253,1763905900133,-500.0,0.00039178,8]
[394700254,1763905900143,-500.0,0.00039178,8]
[394700255,1763905900152,-506.6471525,0.00039178,8]
[394700256,1763905900162,-500.0,0.00039178,8]
[394700257,1763905900173,-500.0,0.00039178,8]
[394700258,1763905900182,-500.0,0.00039178,8]
[394700259,1763905900192,-500.0,0.00039178,8]
[394700260,1763905900202,-500.0,0.00039178,8]
[394700261,1763905900211,-500.0,0.00039178,8]
[394700262,1763905900221,-500.0,0.00039178,8]
[394700263,1763905900231,-500.0,0.00039178,8]
[394700264,1763905900241,-500.0,0.00039178,8]
[394700265,1763905900250,-503.27024843,0.00039178,8]
[394700266,1763905900260,-503.2825672,0.00039178,8]
[394700267,1763905900271,-500.0,0.00039178,8]
[394700268,1763905900282,-500.0,0.00039178,8]
[394700269,1763905900291,-502.2608606,0.00039178,8]
[394700270,1763905900300,-172.6005802,0.00039178,8]
[394700271,1763905900309,-500.0,0.00039178,8]
[394700272,1763905900318,-530.41,0.00039178,8]
[394700273,1763905900327,-500.0,0.00039178,8]
[394700274,1763905900337,-500.0,0.00039178,8]
[394700275,1763905900346,-500.0,0.00039178,8]
[394700276,1763905900355,-500.0,0.00039178,8]
[394700277,1763905900364,-538.08,0.00039178,8]
[394700278,1763905900374,-691.59,0.00039178,8]
[394700279,1763905900384,-618.91,0.00039178,8]
[394700280,1763905900393,-500.0,0.00039178,8]
[394700281,1763905900403,-500.0,0.00039178,8]
[394700282,1763905900412,-500.0,0.00039178,8]
[394700283,1763905900421,-623.43,0.00039178,8]
[394700284,1763905900431,-500.0,0.00039178,8]
[394700285,1763905900441,-500.0,0.00039178,8]
[394700286,1763905900450,-659.79,0.00039178,8]
[394700287,1763905900460,-500.0,0.00039178,8]
[394700288,1763905900472,-500.0,0.00039178,8]
[394700289,1763905900483,-500.0,0.00039178,8]
[394700290,1763905900492,-500.0,0.00039178,8]
[394700291,1763905900501,-500.0,0.00039178,8]
[394700292,1763905900511,-500.0,0.00039178,8]
[394700293,1763905900521,-500.0,0.00039178,8]
[394700294,1763905900530,-500.0,0.00039178,8]
[394700295,1763905900540,-503.15980298,0.00039178,8]
[394700296,1763905900552,-500.0,0.00039178,8]
[394700297,1763905900561,-163.02137977,0.00039178,8]
[394700298,1763905900572,-502.6555686,0.00039178,8]
[394700299,1763905900581,-963.13,0.00039178,8]
[394700300,1763905900591,-898.11,0.00039178,8]
[394700301,1763905900601,-1003.96,0.00039178,8]
[394700302,1763905900610,-500.0,0.00039178,8]
[394700303,1763905900621,-500.0,0.00039178,8]
[394700304,1763905900630,-500.0,0.00039178,8]
[394700305,1763905900640,-500.0,0.00039178,8]
[394700306,1763905900650,-534.81107374,0.00039178,8]
[394700307,1763905900659,-500.0,0.00039178,8]
[394700308,1763905900668,-503.81149529,0.00039178,8]
[394700309,1763905900678,-894.88,0.00039178,8]
[394700310,1763905900756,-500.0,0.00039178,8]
[394700311,1763905900765,-540.21,0.00039178,8]
[394700312,1763905900776,-500.0,0.00039178,8]
[394700313,1763905900785,-500.0,0.00039178,8]
[394700314,1763905900796,-874.81,0.00039178,8]
[394700315,1763905900805,-518.97,0.00039178,8]
[394700316,1763905900815,-500.0,0.00039178,8]
[394700317,1763905900824,-500.0,0.00039178,8]
[394700318,1763905900833,-500.0,0.00039178,8]
[394700319,1763905900842,-500.0,0.00039178,8]
[394700320,1763905900853,-625.71690768,0.00039178,8]
[394700321,1763905900862,-500.0,0.00039178,8]
[394700322,1763905900873,-1060.07,0.00039178,8]
[394700323,1763905900882,-504.34288329,0.00039178,8]
[394700324,1763905900892,-503.34759032,0.00039178,8]
[394700325,1763905900902,-500.0,0.00039178,8]
[394700326,1763905900911,-500.0,0.00039178,8]
[394700327,1763905900920,-500.0,0.00039178,8]
[394700328,1763905900929,-510.46366579,0.00039178,8]
[394700329,1763905900938,-500.0,0.00039178,8]
[394700330,1763905900947,-500.0,0.00039178,8]
[394700331,1763905900958,-505.65429913,0.00039178,8]
[394700332,1763905900967,-500.77125197,0.00039178,8]
[394700333,1763905900977,-500.0,0.00039178,8]
[394700334,1763905900986,-500.0,0.00039178,8]
[394700335,1763905900995,-591.64,0.00039178,8]
[394700336,1763905901005,-500.0,0.00039178,8]
[394700337,1763905901015,-1167.82,0.00039178,8]
[394700338,1763905901025,-500.0,0.00039178,8]
[394700339,1763905901034,-500.0,0.00039178,8]
[394700340,1763905901045,-500.0,0.00039178,8]
[394700341,1763905901055,-505.67896986,0.00039178,8]
[394700342,1763905901064,-505.49444319,0.00039178,8]
[394700343,1763905901073,-882.66,0.00039178,8]
[394700344,1763905901082,-500.0,0.00039178,8]
[394700345,1763905901091,-504.57075564,0.00039178,8]
[394700346,1763905901100,-739.81,0.00039178,8]
[394700347,1763905901109,-755.0,0.00039178,8]
[394700348,1763905901118,-500.0,0.00039178,8]
[394700349,1763905901127,-651.54,0.00039178,8]
[394700350,1763905901137,-504.6267446,0.00039178,8]
[394700351,1763905901146,-503.02381469,0.00039178,8]
[394700352,1763905901155,-500.0,0.00039178,8]
[394700353,1763905901164,-524.71310922,0.00039178,8]
[394700354,1763905901173,-206.93778354,0.00039178,8]
[394700355,1763905901182,-500.0,0.00039178,8]
[394700356,1763905901191,-500.0,0.00039178,8]
[394700357,1763905901200,-509.67308174,0.00039178,8]
[394700358,1763905901210,-573.43681878,0.00039178,8]
[394700359,1763905901220,-500.0,0.00039178,8]
[394700360,1763905901230,-500.0,0.00039178,8]
[394700361,1763905901240,-500.0,0.00039178,8]
[394700362,1763905901251,-500.0,0.00039178,8]
[394700363,1763905901261,-500.0,0.00039178,8]
[394700364,1763905901270,-500.0,0.00039178,8]
[394700365,1763905901280,-500.0,0.00039178,8]
[394700366,1763905901290,-500.0,0.00039178,2]
[394700367,1763905901299,-524.0776506,0.00039178,8]
[394700368,1763905901309,-500.0,0.00039178,8]
[394700369,1763905901318,-500.0,0.00039178,8]
[394700370,1763905901327,-642.75,0.00039178,8]
[394700371,1763905901336,-529.94583998,0.00039178,8]
[394700372,1763905901345,-500.0,0.00039178,8]
[394700373,1763905901354,-504.25909329,0.00039178,8]
[394700374,1763905901363,-500.0,0.00039178,8]
[394700375,1763905901372,-500.0,0.00039178,8]
[394700376,1763905901381,-397.97303517,0.00039178,8]
[394700377,1763905901391,-556.93106572,0.00039178,8]
[394700378,1763905901400,-578.7,0.00039178,8]
[394700379,1763905901410,-500.0,0.00039178,8]
[394700380,1763905901419,-880.68,0.00039178,2]
[394700381,1763905901428,-500.0,0.00039178,8]
[394700382,1763905901437,-504.65964041,0.00039178,8]
[394700383,1763905901446,-510.7,0.00039178,8]
[394700384,1763905901455,-507.47439357,0.00039178,8]
[394700385,1763905901464,-500.0,0.00039178,8]
[394700386,1763905901476,-500.0,0.00039178,8]
[394700387,1763905901486,-500.0,0.00039178,8]
[394700388,1763905901495,-500.0,0.00039178,8]
[394700389,1763905901504,-500.0,0.00039178,8]
[394700390,1763905901515,-500.0,0.00039178,8]
[394700391,1763905901524,-500.0,0.00039178,8]
[394700392,1763905901533,-500.0,0.00039178,8]
[394700393,1763905901543,-500.0,0.00039178,8]
[394700394,1763905901553,-500.0,0.00039178,8]
[394700395,1763905901562,-760.12,0.00039178,8]
[394700396,1763905901571,-500.0,0.00039178,8]
[394700397,1763905901580,-500.0,0.00039178,8]
[394700398,1763905901589,-500.0,0.00039178,8]
[394700399,1763905901598,-500.0,0.00039178,8]
[394700400,1763905901607,-1005.05,0.00039178,8]
[394700401,1763905901616,-968.73,0.00039178,8]
[394700402,1763905901625,-500.0,0.00039178,8]
[394700403,1763905901634,-647.51,0.00039178,8]
[394700404,1763905901643,-500.0,0.00039178,8]
[394700405,1763905901653,-500.0,0.00039178,8]
[394700406,1763905901662,-500.0,0.00039178,8]
[394700407,1763905901671,-500.0,0.00039178,8]
[394700408,1763905901680,-500.0,0.00039178,8]
[394700409,1763905901689,-585.68,0.00039178,8]
[394700410,1763905901698,-500.0,0.00039178,8]
[394700411,1763905901707,-150.47836245,0.00039178,8]
[394700412,1763905901721,-500.0,0.00039178,8]
[394700413,1763905901730,-500.0,0.00039178,8]
[394700414,1763905901740,-500.0,0.00039178,8]
[394700415,1763905901750,-506.57596285,0.00039178,8]
[394700416,1763905901759,-500.0,0.00039178,8]
[394700417,1763905901768,-500.0,0.00039178,8]
[394700418,1763905901778,-500.0,0.00039178,8]
[394700419,1763905901787,-500.0,0.00039178,8]
[394700420,1763905901796,-500.0,0.00039178,8]
[394700421,1763905901806,-503.09364061,0.00039178,8]
[394700422,1763905901815,-523.21,0.00039178,8]
[394700423,1763905901824,-648.09,0.00039178,8]
[394700424,1763905901833,-504.03860518,0.00039178,8]
[394700425,1763905901843,-752.93,0.00039178,8]
[394700426,1763905901855,-500.0,0.00039178,8]
[394700427,1763905901864,-513.38613126,0.00039178,8]
[394700428,1763905901875,-504.17855767,0.00039178,8]
[394700429,1763905901885,-500.0,0.00039178,8]
[394700430,1763905901894,-683.98,0.00039178,8]
[394700431,1763905901903,-500.0,0.00039178,8]
[394700432,1763905901913,-500.0,0.00039178,8]
[394700433,1763905901922,-173.44802907,0.00039178,8]
[394700434,1763905901931,-500.0,0.00039178,8]
[394700435,1763905901940,-500.0,0.00039178,8]
[394700436,1763905901950,-500.0,0.00039178,8]
[394700437,1763905901959,-500.0,0.00039178,8]
[394700438,1763905901968,-500.0,0.00039178,8]
[394700439,1763905901978,-500.0,0.00039178,8]
[394700440,1763905901988,-710.96,0.00039178,8]
[394700441,1763905901997,-500.0,0.00039178,8]
[394700442,1763905902006,-1059.02,0.00039178,8]
[394700443,1763905902016,-577.81,0.00039178,8]
[394700444,1763905902026,-500.0,0.00039178,8]
[394700445,1763905902036,-500.0,0.00039178,8]
[394700446,1763905902046,-795.04,0.00039178,8]
[394700447,1763905902055,-505.06472812,0.00039178,8]
[394700448,1763905902065,-500.0,0.00039178,8]
[394700449,1763905902074,-500.0,0.00039178,8]
[394700450,1763905902084,-500.0,0.00039178,8]
[394700451,1763905902093,-762.27,0.00039178,8]
[394700452,1763905902102,-500.0,0.00039178,8]
[394700453,1763905902111,-754.39,0.00039178,8]
[394700454,1763905902120,-503.5515599,0.00039178,8]
[394700455,1763905902130,-727.53,0.00039178,8]
[394700456,1763905902139,-500.0,0.00039178,8]
[394700457,1763905902148,-500.0,0.00039178,8]
[394700458,1763905902157,-594.57,0.00039178,8]
[394700459,1763905902166,-549.00096797,0.00039178,8]
[394700460,1763905902175,-500.0,0.00039178,8]
[394700461,1763905902184,-1146.28,0.00039178,8]
[394700462,1763905902193,-553.10850181,0.00039178,8]
[394700463,1763905902202,-500.0,0.00039178,8]
[394700464,1763905902211,-500.0,0.00039178,8]
[394700465,1763905902220,-500.0,0.00039178,8]
[394700466,1763905902229,-500.0,0.00039178,8]
[394700467,1763905902239,-503.56774561,0.00039178,8]
[394700468,1763905902248,-563.18,0.00039178,8]
[394700469,1763905902257,-500.0,0.00039178,8]
[394700470,1763905902267,-500.0,0.00039178,8]
[394700471,1763905902276,-507.13727289,0.00039178,8]
[394700472,1763905902285,-500.0,0.00039178,8]
[394700473,1763905902294,-500.0,0.00039178,8]
[394700474,1763905902303,-500.0,0.00039178,8]
[394700475,1763905902313,-500.0,0.00039178,8]
[394700476,1763905902322,-500.0,0.00039178,8]
[394700477,1763905902331,-500.0,0.00039178,8]
[394700478,1763905902341,-500.0,0.00039178,8]
[394700479,1763905902350,-500.0,0.00039178,8]
[394700480,1763905902360,-500.0,0.00039178,8]
[394700481,1763905902369,-500.0,0.00039178,8]
[394700482,1763905902380,-500.0,0.00039178,8]
[394700483,1763905902390,-500.0,0.00039178,8]
[394700484,1763905902400,-500.0,0.00039178,8]
[394700485,1763905902410,-500.0,0.00039178,8]
[394700486,1763905902420,-500.0,0.00039178,8]
[394700487,1763905902430,-500.0,0.00039178,8]
[394700488,1763905902440,-500.0,0.00039178,8]
[394700489,1763905902449,-500.0,0.00039178,8]
[394700490,1763905902458,-785.97,0.00039178,8]
[394700491,1763905902468,-500.0,0.00039178,8]
[394700492,1763905902481,-500.0,0.00039178,8]
[394700493,1763905902492,-594.19,0.00039178,8]
[394700494,1763905902502,-500.0,0.00039178,8]
[394700495,1763905902511,-500.0,0.00039178,8]
[394700496,1763905902521,-513.84,0.00039178,8]
[394700497,1763905902531,-500.0,0.00039178,8]
[394700498,1763905902540,-500.0,0.00039178,8]
[394700499,1763905902551,-635.86,0.00039178,8]
[394700500,1763905902560,-500.0,0.00039178,8]
[394700501,1763905902569,-500.0,0.00039178,8]
[394700502,1763905902579,-500.0,0.00039178,8]
[394700503,1763905902588,-500.0,0.00039178,8]
[394700504,1763905902597,-558.31,0.00039178,8]
[394700505,1763905902607,-500.0,0.00039178,8]
[394700506,1763905902616,-500.0,0.00039178,8]
[394700507,1763905902626,-241.37000119,0.00039178,8]
[394700508,1763905902635,-500.0,0.00039178,8]
[394700509,1763905902644,-500.0,0.00039178,8]
[394700510,1763905902654,-500.0,0.00039178,8]
[394700511,1763905902663,-500.0,0.00039178,8]
[394700512,1763905902672,-500.0,0.00039178,8]
[394700513,1763905902681,-300.0,0.00039178,2]
[394700514,1763905902691,-500.0,0.00039178,8]
[394700515,1763905902700,-500.0,0.00039178,8]
[394700516,1763905902709,-500.0,0.00039178,8]
[394700517,1763905902718,-500.0,0.00039178,8]
[394700518,1763905902728,-328.59,0.00039178,8]
[394700519,1763905902738,-500.0,0.00039178,8]
[394700520,1763905902748,-500.0,0.00039178,8]
[394700521,1763905902757,-500.0,0.00039178,8]
[394700522,1763905902767,-500.0,0.00039178,8]
[394700523,1763905902776,-500.0,0.00039178,8]
[394700524,1763905902785,-500.0,0.00039178,8]
[394700525,1763905902794,-500.0,0.00039178,8]
[394700526,1763905902804,-701.06,0.00039178,8]
[394700527,1763905902813,-500.0,0.00039178,8]
[394700528,1763905902822,-727.9,0.00039178,8]
[394700529,1763905902832,-500.0,0.00039178,8]
[394700530,1763905902841,-500.0,0.00039178,8]
[394700531,1763905902851,-500.0,0.00039178,8]
[394700532,1763905902859,-500.0,0.00039178,8]
[394700533,1763905902869,-500.0,0.00039178,8]
[394700534,1763905902878,-984.55,0.00039178,8]
[394700535,1763905902887,-578.72163588,0.00039178,8]
[394700536,1763905902896,-553.49,0.00039178,8]
[394700537,1763905902905,-500.0,0.00039178,8]
[394700538,1763905902914,-768.57,0.00039178,8]
[394700539,1763905902924,-500.0,0.00039178,8]
[394700540,1763905902934,-500.0,0.00039178,8]
[394700541,1763905902943,-511.15933988,0.00039178,8]
[394700542,1763905902952,-500.0,0.00039178,8]
[394700543,1763905902961,-307.77130377,0.00039178,8]
[394700544,1763905902971,-500.0,0.00039178,8]
[394700545,1763905902980,-500.0,0.00039178,8]
[394700546,1763905902991,-500.0,0.00039178,8]
[394700547,1763905903000,-500.0,0.00039178,8]
[394700548,1763905903009,-560.22432165,0.00039178,8]
[394700549,1763905903019,-500.0,0.00039178,8]
[394700550,1763905903029,-521.61749187,0.00039178,8]
[394700551,1763905903038,-500.0,0.00039178,8]
[394700552,1763905903048,-500.0,0.00039178,8]
[394700553,1763905903057,-391.69941869,0.00039178,8]
[394700554,1763905903067,-500.0,0.00039178,8]
[394700555,1763905903076,-500.0,0.00039178,8]
[394700556,1763905903086,-500.0,0.00039178,8]
[394700557,1763905903095,-500.0,0.00039178,8]
[394700558,1763905903105,-500.0,0.00039178,8]
[394700559,1763905903114,-500.0,0.00039178,8]
[394700560,1763905903123,-500.0,0.00039178,8]
[394700561,1763905903134,-500.0,0.00039178,8]
[394700562,1763905903143,-500.0,0.00039178,8]
[394700563,1763905903152,-500.0,0.00039178,8]
[394700564,1763905903161,-500.0,0.00039178,8]
[394700565,1763905903172,-527.61025728,0.00039178,8]
[394700566,1763905903182,-505.91704627,0.00039178,8]
[394700567,1763905903191,-500.0,0.00039178,8]
[394700568,1763905903201,-500.0,0.00039178,8]
[394700569,1763905903213,-500.0,0.00039178,8]
[394700570,1763905903224,-500.0,0.00039178,8]
[394700571,1763905903234,-711.01,0.00039178,8]
[394700572,1763905903243,-248.57415978,0.00039178,8]
[394700573,1763905903253,-500.0,0.00039178,8]
[394700574,1763905903262,-500.0,0.00039178,8]
[394700575,1763905903271,-500.0,0.00039178,8]
[394700576,1763905903281,-500.0,0.00039178,8]
[394700577,1763905903291,-500.0,0.00039178,8]
[394700578,1763905903300,-508.10152936,0.00039178,8]
[394700579,1763905903310,-518.88,0.00039178,8]
[394700580,1763905903319,-527.53,0.00039178,8]
[394700581,1763905903328,-504.02580522,0.00039178,8]
[394700582,1763905903338,-500.0,0.00039178,8]
[394700583,1763905903347,-500.0,0.00039178,8]
[394700584,1763905903358,-500.0,0.00039178,8]
[394700585,1763905903367,-369.86686088,0.00039178,8]
[394700586,1763905903376,-161.36562518,0.00039178,8]
[394700587,1763905903385,-500.0,0.00039178,8]
[394700588,1763905903395,-500.0,0.00039178,8]
[394700589,1763905903404,-500.0,0.00039178,8]
[394700590,1763905903413,-503.72,0.00039178,8]
[394700591,1763905903423,-500.0,0.00039178,8]
[394700592,1763905903432,-500.0,0.00039178,8]
[394700593,1763905903442,-500.0,0.00039178,8]
[394700594,1763905903451,-429.49337666,0.00039178,8]
[394700595,1763905903460,-273.13422851,0.00039178,8]
[394700596,1763905903470,-500.0,0.00039178,8]
[394700597,1763905903483,-500.0,0.00039178,8]
[394700598,1763905903492,-619.88,0.00039178,8]
[394700599,1763905903502,-500.0,0.00039178,8]
[394700600,1763905903512,-559.56,0.00039178,8]
[394700601,1763905903522,-500.0,0.00039178,8]
[394700602,1763905903531,-500.0,0.00039178,8]
[394700603,1763905903541,-526.34,0.00039178,8]
[394700604,1763905903552,-508.31184443,0.00039178,8]
[394700605,1763905903561,-500.0,0.00039178,8]
[394700606,1763905903571,-500.0,0.00039178,8]
[394700607,1763905903580,-500.0,0.00039178,8]
[394700608,1763905903590,-500.0,0.00039178,8]
[394700609,1763905903600,-500.0,0.00039178,8]
[394700610,1763905903610,-500.0,0.00039178,8]
[394700611,1763905903620,-500.0,0.00039178,8]
[394700612,1763905903631,-500.0,0.00039178,8]
[394700613,1763905903641,-571.15,0.00039178,8]
[394700614,1763905903651,-760.34,0.00039178,8]
[394700615,1763905903660,-500.0,0.00039178,8]
[394700616,1763905903670,-644.42,0.00039178,8]
[394700617,1763905903679,-500.0,0.00039178,8]
[394700618,1763905903689,-500.0,0.00039178,8]
[394700619,1763905903698,-1144.68,0.00039178,8]
[394700620,1763905903707,-500.0,0.00039178,8]
[394700621,1763905903716,-500.0,0.00039178,8]
[394700622,1763905903726,-500.0,0.00039178,8]
[394700623,1763905903735,-500.0,0.00039178,8]
[394700624,1763905903745,-500.0,0.00039178,8]
[394700625,1763905903754,-500.0,0.00039178,8]
[394700626,1763905903764,-500.0,0.00039178,8]
[394700627,1763905903774,-342.80076031,0.00039178,8]
[394700628,1763905903784,-500.0,0.00039178,8]
[394700629,1763905903794,-635.75048655,0.00039178,8]
[394700630,1763905903803,-500.0,0.00039178,8]
[394700631,1763905903813,-352.74744826,0.00039178,8]
[394700632,1763905903822,-500.0,0.00039178,8]
[394700633,1763905903831,-500.0,0.00039178,8]
[394700634,1763905903842,-500.0,0.00039178,10]
[394700635,1763905903852,-500.0,0.00039178,8]
[394700636,1763905903861,-799.4,0.00039178,8]
[394700637,1763905903871,-500.0,0.00039178,8]
[394700638,1763905903879,-538.82222941,0.00039178,8]
[394700639,1763905903888,-500.0,0.00039178,8]
[394700640,1763905903898,-500.0,0.00039178,8]
[394700641,1763905903907,-541.62,0.00039178,8]
[394700642,1763905903917,-552.06,0.00039178,8]
[394700643,1763905903926,-500.0,0.00039178,8]
[394700644,1763905903936,-500.0,0.00039178,8]
[394700645,1763905903946,-366.3872066,0.00039178,8]
[394700646,1763905903955,-744.79,0.00039178,8]
[394700647,1763905903965,-500.0,0.00039178,8]
[394700648,1763905903975,-500.0,0.00039178,8]
[394700649,1763905903984,-500.0,0.00039178,8]
[394700650,1763905903994,-500.0,0.00039178,8]
[394700651,1763905904004,-500.0,0.00039178,8]
[394700652,1763905904014,-500.0,0.00039178,8]
[394700653,1763905904023,-500.0,0.00039178,8]
[394700654,1763905904033,-500.0,0.00039178,8]
[394700655,1763905904044,-579.91,0.00039178,8]
[394700656,1763905904053,-500.0,0.00039178,8]
[394700657,1763905904063,-500.0,0.00039178,8]
[394700658,1763905904072,-500.0,0.00039178,8]
[394700659,1763905904082,-500.0,0.00039178,8]
[394700660,1763905904092,-500.0,0.00039178,8]
[394700661,1763905904102,-500.0,0.00039178,8]
[394700662,1763905904112,-500.0,0.00039178,8]
[394700663,1763905904122,-500.0,0.00039178,2]
[394700664,1763905904132,-500.0,0.00039178,8]
[394700665,1763905904141,-500.0,0.00039178,8]
[394700666,1763905904152,-500.0,0.00039178,8]
[394700667,1763905904161,-597.51,0.00039178,8]
[394700668,1763905904172,-500.0,0.00039178,8]
[394700669,1763905904182,-1023.67,0.00039178,8]
[394700670,1763905904192,-500.0,0.00039178,8]
[394700671,1763905904201,-500.0,0.00039178,8]
[394700672,1763905904212,-435.43504783,0.00039178,8]
[394700673,1763905904222,-665.33,0.00039178,8]
[394700674,1763905904232,-500.0,0.00039178,8]
[394700675,1763905904243,-762.94,0.00039178,8]
[394700676,1763905904252,-500.0,0.00039178,8]
[394700677,1763905904262,-500.0,0.00039178,8]
[394700678,1763905904272,-815.01,0.00039178,8]
[394700679,1763905904282,-696.88,0.00039178,8]
[394700680,1763905904293,-500.0,0.00039178,8]
[394700681,1763905904303,-500.0,0.00039178,8]
[394700682,1763905904313,-791.97,0.00039178,8]
[394700683,1763905904323,-500.0,0.00039178,8]
[394700684,1763905904332,-500.0,0.00039178,8]
[394700685,1763905904342,-731.12,0.00039178,8]
[394700686,1763905904352,-500.0,0.00039178,8]
[394700687,1763905904362,-500.0,0.00039178,8]
[394700688,1763905904373,-478.23050729,0.00039178,8]
[394700689,1763905904383,-500.0,0.00039178,8]
[394700690,1763905904393,-500.0,0.00039178,8]
[394700691,1763905904404,-500.0,0.00039178,8]
[394700692,1763905904414,-500.0,0.00039178,8]
[394700693,1763905904424,-500.0,0.00039178,8]
[394700694,1763905904434,-500.0,0.00039178,8]
[394700695,1763905904445,-401.91270933,0.00039178,8]
[394700696,1763905904455,-500.0,0.00039178,8]
[394700697,1763905904466,-500.0,0.00039178,8]
[394700698,1763905904480,-500.0,0.00039178,8]
[394700699,1763905904491,-500.0,0.00039178,8]
[394700700,1763905904501,-500.0,0.00039178,8]
[394700701,1763905904512,-500.0,0.00039178,8]
[394700702,1763905904523,-211.78074849,0.00039178,8]
[394700703,1763905904532,-500.0,0.00039178,8]
[394700704,1763905904543,-647.89,0.00039178,8]
[394700705,1763905904554,-569.17,0.00039178,8]
[394700706,1763905904565,-500.0,0.00039178,8]
[394700707,1763905904575,-500.0,0.00039178,8]
[394700708,1763905904585,-500.0,0.00039178,8]
[394700709,1763905904595,-500.0,0.00039178,8]
[394700710,1763905904605,-500.0,0.00039178,8]
[394700711,1763905904615,-500.0,0.00039178,8]
[394700712,1763905904625,-500.0,0.00039178,8]
[394700713,1763905904635,-500.0,0.00039178,8]
[394700714,1763905904645,-821.83,0.00039178,8]
[394700715,1763905904655,-500.0,0.00039178,8]
[394700716,1763905904665,-926.53,0.00039178,8]
[394700717,1763905904675,-500.0,0.00039178,8]
[394700718,1763905904685,-500.0,0.00039178,8]
[394700719,1763905904695,-517.27736781,0.00039178,8]
[394700720,1763905904704,-500.0,0.00039178,8]
[394700721,1763905904714,-500.0,0.00039178,8]
[394700722,1763905904725,-500.0,0.00039178,8]
[394700723,1763905904735,-519.82708717,0.00039178,8]
[394700724,1763905904744,-500.0,0.00039178,8]
[394700725,1763905904755,-500.0,0.00039178,8]
[394700726,1763905904764,-500.0,0.00039178,8]
[394700727,1763905904774,-994.9,0.00039178,8]
[394700728,1763905904784,-500.0,0.00039178,8]
[394700729,1763905904794,-500.0,0.00039178,8]
[394700730,1763905904804,-760.23,0.00039178,8]
[394700731,1763905904813,-500.0,0.00039178,8]
[394700732,1763905904823,-500.0,0.00039178,8]
[394700733,1763905904833,-500.0,0.00039178,8]
[394700734,1763905904842,-500.0,0.00039178,8]
[394700735,1763905904852,-500.0,0.00039178,8]
[394700736,1763905904861,-500.0,0.00039178,8]
[394700737,1763905904871,-1088.47,0.00039178,8]
[394700738,1763905904880,-500.0,0.00039178,8]